[Event "USA-ch Juniors Open 2019"]
[Site "Saint Louis"]
[Date "2019.07.11"]
[Round "1.1"]
[White "Checa, Nicolas"]
[Black "Vaidya, Atulya"]
[Result "1-0"]
[ECO "D38"]
[WhiteElo "2506"]
[BlackElo "2118"]
[Annotator "ChessBase"]
[PlyCount "83"]
[EventDate "2019.07.09"]
[EventType "tourn"]
[EventCountry "USA"]
[SourceTitle "playchess.com"]
[Source "ChessBase"]
[SourceQuality "1"]
[TimeControl "40/5400+30:1800+30"]

1. d4 {[%emt 0:00:00]} Nf6 {[%emt 0:00:00]} 2. c4 {[%emt 0:00:00]} e6 {[%emt 0:00:00]} 3. Nf3 {[%emt 0:00:30]} d5 {[%emt 0:00:00]} 4. Nc3 {[%emt 0:00:17]} Bb4 {[%emt 0:00:00]} 5. Qb3 {[%emt 0:03:16]} c5 {[%emt 0:02:14]} 6. dxc5 {[%emt 0:02:18]} Na6 {[%emt 0:03:34]} 7. a3 {[%emt 0:08:15]} Bxc3+ {[%emt 0:07:19]} 8. Qxc3 {[%emt 0:00:21]} Nxc5 {[%emt 0:04:08]} 9. cxd5 {[%emt 0:03:16]} Qxd5 {[%emt 0:02:02]} 10. Be3 {[%emt 0:03:06]} Nce4 {[%emt 0:03:53]} 11. Qe5 {[%emt 0:00:20]} O-O {[%emt 0:04:26]} 12. Rd1 {[%emt 0:02:31]} Qxe5 {[%emt 0:16:59]} 13. Nxe5 {[%emt 0:00:19]} Nd5 {[%emt 0:00:13]} 14. Bc1 {[%emt 0:03:24]} Nd6 {[%emt 0:05:12]} 15. f3 {[%emt 0:03:22]} f5 {[%emt 0:03:58]} 16. e3 {[%emt 0:01:03]} b6 {[%emt 0:00:37]} 17. Bd2 {[%emt 0:07:28]} Bb7 {[%emt 0:10:02]} 18. Bb4 {[%emt 0:09:02]} Nxb4 {[%emt 0:00:10]} 19. Rxd6 {[%emt 0:02:07]} Nd5 {[%emt 0:00:26]} 20. Bc4 {[%emt 0:02:22]} Rad8 {[%emt 0:08:06]} 21. Rxd8 {[%emt 0:03:39]} Rxd8 {[%emt 0:00:08]} 22. Kf2 {[%emt 0:04:32]} Kf8 {[%emt 0:01:34]} 23. Rc1 {[%emt 0:00:14]} Rc8 {[%emt 0:00:08]} 24. Rd1 {[%emt 0:02:49]} Ke7 {[%emt 0:00:19]} 25. Bb3 {[%emt 0:02:45]} Rc7 {[%emt 0:00:35]} 26. h3 {[%emt 0:04:09]} h5 {[%emt 0:08:31]} 27. h4 {[%emt 0:03:15]} a5 {[%emt 0:01:42]} 28. Rd2 {[%emt 0:03:05]} Kf6 {[%emt 0:00:17]} 29. Nd3 {[%emt 0:01:00]} g5 {[%emt 0:08:01]} 30. hxg5+ {[%emt 0:01:37]} Kxg5 {[%emt 0:00:08]} 31. Bxd5 {[%emt 0:04:10]} Bxd5 {[%emt 0:00:42]} 32. Nf4 {[%emt 0:00:07]} Rc5 {[%emt 0:00:06]} 33. b4 {[%emt 0:03:14]} axb4 {[%emt 0:01:57]} 34. axb4 {[%emt 0:00:24]} Rb5 {[%emt 0:00:04]} 35. Rd4 {[%emt 0:02:24]} Bb3 {[%emt 0:01:48]} 36. g3 {[%emt 0:02:48]} Ba2 {[%emt 0:01:38]} 37. Ke2 {[%emt 0:03:38]} Bb3 {[%emt 0:00:09]} 38. Kd2 {[%emt 0:01:21]} Bd5 {[%emt 0:00:17]} 39. Ke2 {[%emt 0:08:06]} Bb3 {[%emt 0:00:16]} 40. Kd3 {[%emt 0:00:00]} Bd5 {[%emt 0:00:00]} 41. Nxd5 {[%emt 0:01:07]} exd5 {[%emt 0:02:57]} 42. Kc3 {[%emt 0:00:05]} 1-0

[Event "USA-ch Juniors Open 2019"]
[Site "Saint Louis"]
[Date "2019.07.12"]
[Round "2.3"]
[White "Burke, John M"]
[Black "Tang, Andrew"]
[Result "1/2-1/2"]
[ECO "C60"]
[WhiteElo "2562"]
[BlackElo "2495"]
[Annotator "ChessBase"]
[PlyCount "59"]
[EventDate "2019.07.09"]
[EventType "tourn"]
[EventCountry "USA"]
[SourceTitle "playchess.com"]
[Source "ChessBase"]
[SourceQuality "1"]
[TimeControl "40/5400+30:1800+30"]

1. e4 {[%emt 0:00:00]} e5 {[%emt 0:00:00]} 2. Nf3 {[%emt 0:00:00]} Nc6 {[%emt 0:00:00]} 3. Bb5 {[%emt 0:00:00]} g6 {[%emt 0:00:00]} 4. d4 {[%emt 0:01:42]} exd4 {[%emt 0:00:00]} 5. Bg5 {[%emt 0:01:07]} Be7 {[%emt 0:00:03]} 6. Bxe7 {[%emt 0:00:30]} Qxe7 {[%emt 0:00:06]} 7. Bxc6 {[%emt 0:01:19]} dxc6 {[%emt 0:00:04]} 8. Qxd4 {[%emt 0:00:14]} Nf6 {[%emt 0:00:07]} 9. Nc3 {[%emt 0:01:14]} Bg4 {[%emt 0:00:08]} 10. Nd2 {[%emt 0:02:39]} c5 {[%emt 0:00:05]} 11. Qe3 {[%emt 0:02:19]} O-O-O {[%emt 0:00:07]} 12. f3 {[%emt 0:01:34]} Be6 {[%emt 0:00:26]} 13. O-O-O {[%emt 0:09:21]} b6 {[%emt 0:00:10]} 14. g4 {[%emt 0:02:12]} Kb8 {[%emt 0:04:43]} 15. Nb3 {[%emt 0:11:24]} Bc8 {[%emt 0:11:37]} 16. h4 {[%emt 0:06:24]} Rxd1+ {[%emt 0:34:19]} 17. Rxd1 {[%emt 0:02:39]} h6 {[%emt 0:01:35]} 18. Qf4 {[%emt 0:07:31]} Be6 {[%emt 0:02:05]} 19. Nd2 {[%emt 0:05:08]} Ne8 {[%emt 0:08:43]} 20. Qg3 {[%emt 0:12:34]} Nd6 {[%emt 0:01:30]} 21. Nf1 {[%emt 0:02:06]} Nc4 {[%emt 0:08:28]} 22. b3 {[%emt 0:04:00]} Qf6 {[%emt 0:05:11]} 23. f4 {[%emt 0:00:44]} Bxg4 {[%emt 0:00:40]} 24. Qxg4 {[%emt 0:09:03]} Qxc3 {[%emt 0:00:07]} 25. bxc4 {[%emt 0:00:04]} Qa1+ {[%emt 0:02:39]} 26. Kd2 {[%emt 0:00:05]} Qd4+ {[%emt 0:00:12]} 27. Kc1 {[%emt 0:00:33]} Qa1+ {[%emt 0:00:06]} 28. Kd2 {[%emt 0:00:02]} Qd4+ {[%emt 0:00:20]} 29. Kc1 {[%emt 0:00:05]} Qa1+ {[%emt 0:14:35]} 30. Kd2 {[%emt 0:00:11]} 1/2-1/2

[Event "USA-ch Juniors Open 2019"]
[Site "Saint Louis"]
[Date "2019.07.12"]
[Round "2.4"]
[White "Niemann, Hans Moke"]
[Black "Yu, Jennifer"]
[Result "1-0"]
[ECO "A06"]
[WhiteElo "2467"]
[BlackElo "2341"]
[PlyCount "59"]
[EventDate "2019.07.09"]
[EventType "tourn"]
[EventCountry "USA"]
[TimeControl "40/5400+30:1800+30"]

1. Nf3 {[%emt 0:00:00]} d5 {[%emt 0:00:00]} 2. c4 {[%emt 0:00:00]} e6 {[%emt 0:00:09]} 3. b3 {[%emt 0:01:10]} Nf6 {[%emt 0:01:59]} 4. Bb2 {[%emt 0:00:06]} Bd6 {[%emt 0:03:39]} 5. g4 {[%emt 0:04:39]} Nxg4 {[%emt 0:11:31]} 6. Rg1 {[%emt 0:03:43]} e5 {[%emt 0:04:02]} 7. h3 {[%emt 0:00:59]} e4 {[%emt 0:00:19]} 8. hxg4 {[%emt 0:00:18]} exf3 {[%emt 0:00:05]} 9. e3 {[%emt 0:00:12]} Qg5 {[%emt 0:20:12]} 10. Qxf3 {[%emt 0:10:55]} h5 {[%emt 0:12:40]} 11. Nc3 {[%emt 0:04:13]} hxg4 {[%emt 0:03:06]} 12. Qxd5 {[%emt 0:03:36]} Qxd5 {[%emt 0:04:07]} 13. Nxd5 {[%emt 0:00:31]} Kf8 {[%emt 0:00:22]} 14. e4 {[%emt 0:10:59]} Na6 {[%emt 0:15:58]} 15. Be2 {[%emt 0:05:21]} f6 {[%emt 0:01:57]} 16. d4 {[%emt 0:01:40]} Bh2 {[%emt 0:04:22]} 17. Rg2 {[%emt 0:01:35]} Rh4 {[%emt 0:00:14]} 18. Kd2 {[%emt 0:04:18]} Bd7 {[%emt 0:02:59]} 19. Kc2 {[%emt 0:05:11]} Re8 {[%emt 0:05:11]} 20. Rh1 {[%emt 0:05:44]} g3 {[%emt 0:02:20]} 21. fxg3 {[%emt 0:01:10]} Bxg3 {[%emt 0:00:03]} 22. Ba3+ {[%emt 0:00:07]} c5 {[%emt 0:00:26]} 23. Rxh4 {[%emt 0:00:03]} Bxh4 {[%emt 0:00:04]} 24. dxc5 {[%emt 0:00:05]} Kg8 {[%emt 0:02:27]} 25. Bd3 {[%emt 0:00:38]} Nb8 {[%emt 0:00:30]} 26. Bb2 {[%emt 0:00:15]} Kf7 {[%emt 0:00:14]} 27. e5 {[%emt 0:00:15]} Bg5 {[%emt 0:02:58]} 28. exf6 {[%emt 0:00:33]} gxf6 {[%emt 0:00:03]} 29. Bxf6 {[%emt 0:00:17]} Bxf6 {[%emt 0:00:23]} 30. Bg6+ 1-0

[Event "USA-ch Juniors Open 2019"]
[Site "Saint Louis"]
[Date "2019.07.12"]
[Round "2.5"]
[White "Checa, Nicolas"]
[Black "Jacobson, Brandon"]
[Result "1/2-1/2"]
[ECO "D37"]
[WhiteElo "2506"]
[BlackElo "2456"]
[Annotator "ChessBase"]
[PlyCount "128"]
[EventDate "2019.07.09"]
[EventType "tourn"]
[EventCountry "USA"]
[SourceTitle "playchess.com"]
[Source "ChessBase"]
[SourceQuality "1"]
[TimeControl "40/5400+30:1800+30"]

1. d4 {[%emt 0:00:00]} Nf6 {[%emt 0:00:00]} 2. Nf3 {[%emt 0:00:00]} d5 {[%emt 0:00:00]} 3. c4 {[%emt 0:00:32]} e6 {[%emt 0:00:00]} 4. Nc3 {[%emt 0:00:05]} a6 {[%emt 0:00:00]} 5. cxd5 {[%emt 0:02:55]} exd5 {[%emt 0:00:00]} 6. Bg5 {[%emt 0:00:10]} Be6 {[%emt 0:00:00]} 7. e3 {[%emt 0:00:16]} Nbd7 {[%emt 0:00:02]} 8. h3 {[%emt 0:06:36]} Bd6 {[%emt 0:02:17]} 9. Bd3 {[%emt 0:00:24]} c6 {[%emt 0:00:24]} 10. O-O {[%emt 0:00:13]} Qc7 {[%emt 0:00:51]} 11. Qd2 {[%emt 0:03:13]} O-O {[%emt 0:00:07]} 12. Rac1 {[%emt 0:02:12]} Rfe8 {[%emt 0:04:00]} 13. Rfe1 {[%emt 0:08:05]} g6 {[%emt 0:18:14]} 14. Bf4 {[%emt 0:04:31]} Rad8 {[%emt 0:00:51]} 15. b3 {[%emt 0:05:40]} Qb8 {[%emt 0:11:03]} 16. Rb1 {[%emt 0:07:09]} Qc7 {[%emt 0:17:33]} 17. a4 {[%emt 0:05:10]} Nb6 {[%emt 0:03:35]} 18. Ne2 {[%emt 0:04:12]} Ne4 {[%emt 0:14:50]} 19. Qa5 {[%emt 0:05:33]} Na8 {[%emt 0:01:52]} 20. Qxc7 {[%emt 0:00:56]} Nxc7 {[%emt 0:00:03]} 21. Rec1 {[%emt 0:03:43]} Bf5 {[%emt 0:03:33]} 22. Bxd6 {[%emt 0:09:52]} Nxd6 {[%emt 0:00:09]} 23. Bxf5 {[%emt 0:00:04]} Nxf5 {[%emt 0:00:05]} 24. g4 {[%emt 0:00:04]} Nd6 {[%emt 0:00:10]} 25. Kg2 {[%emt 0:00:10]} Kg7 {[%emt 0:00:58]} 26. Nf4 {[%emt 0:00:23]} Re7 {[%emt 0:01:39]} 27. Ne5 {[%emt 0:02:09]} Ne6 {[%emt 0:01:59]} 28. Nfd3 {[%emt 0:03:40]} f6 {[%emt 0:00:48]} 29. Nf3 {[%emt 0:00:04]} Rh8 {[%emt 0:00:22]} 30. Nc5 {[%emt 0:01:34]} h5 {[%emt 0:00:48]} 31. Nxe6+ {[%emt 0:02:55]} Rxe6 {[%emt 0:00:13]} 32. Rh1 {[%emt 0:01:28]} Ne4 {[%emt 0:03:48]} 33. Rbc1 {[%emt 0:03:23]} a5 {[%emt 0:01:46]} 34. Rc2 {[%emt 0:01:25]} Ree8 {[%emt 0:01:09]} 35. Rb1 {[%emt 0:02:12]} hxg4 {[%emt 0:05:07]} 36. hxg4 {[%emt 0:00:35]} Nd6 {[%emt 0:00:04]} 37. Rh1 {[%emt 0:03:18]} Rxh1 {[%emt 0:03:59]} 38. Kxh1 {[%emt 0:00:03]} Re4 {[%emt 0:00:07]} 39. Nh2 {[%emt 0:00:06]} f5 {[%emt 0:01:27]} 40. gxf5 {[%emt 0:00:00]} gxf5 {[%emt 0:00:00]} 41. Kg2 {[%emt 0:14:38]} f4 {[%emt 0:00:21]} 42. Nf1 {[%emt 0:00:08]} Nf5 {[%emt 0:00:32]} 43. Rc3 {[%emt 0:00:59]} Kf6 {[%emt 0:04:02]} 44. Nd2 {[%emt 0:02:02]} Re8 {[%emt 0:00:16]} 45. Kf3 {[%emt 0:00:24]} fxe3 {[%emt 0:00:11]} 46. fxe3 {[%emt 0:00:07]} Rh8 {[%emt 0:00:25]} 47. Nf1 {[%emt 0:01:52]} Nd6 {[%emt 0:06:45]} 48. Rc5 {[%emt 0:01:38]} Ra8 {[%emt 0:06:34]} 49. Ng3 {[%emt 0:00:54]} Ke7 {[%emt 0:03:56]} 50. Rc1 {[%emt 0:04:11]} Rf8+ {[%emt 0:00:39]} 51. Kg2 {[%emt 0:00:10]} Kd7 {[%emt 0:01:07]} 52. Rh1 {[%emt 0:01:21]} Rf7 {[%emt 0:00:26]} 53. Rh8 {[%emt 0:01:08]} Kc7 {[%emt 0:00:02]} 54. Rh1 {[%emt 0:01:16]} b5 {[%emt 0:01:12]} 55. axb5 {[%emt 0:03:41]} cxb5 {[%emt 0:00:19]} 56. Rh8 {[%emt 0:04:36]} Kb7 {[%emt 0:07:34]} 57. Rd8 {[%emt 0:03:38]} Ne4 {[%emt 0:06:19]} 58. Nxe4 {[%emt 0:03:40]} dxe4 {[%emt 0:00:02]} 59. Rd5 {[%emt 0:00:53]} Kb6 {[%emt 0:02:41]} 60. Rd6+ {[%emt 0:00:08]} Ka7 {[%emt 0:01:18]} 61. Rd5 {[%emt 0:00:29]} Kb6 {[%emt 0:00:52]} 62. Rd6+ {[%emt 0:00:27]} Kb7 {[%emt 0:00:12]} 63. Rd5 {[%emt 0:01:08]} Kc6 {[%emt 0:00:41]} 64. Re5 {[%emt 0:00:37]} a4 {[%emt 0:01:05]} 1/2-1/2

[Event "USA-ch Juniors Open 2019"]
[Site "Saint Louis"]
[Date "2019.07.14"]
[Round "4.1"]
[White "Vaidya, Atulya"]
[Black "Sheng, Joshua"]
[Result "1/2-1/2"]
[ECO "E34"]
[WhiteElo "2118"]
[BlackElo "2449"]
[Annotator "ChessBase"]
[PlyCount "60"]
[EventDate "2019.07.09"]
[EventType "tourn"]
[EventCountry "USA"]
[SourceTitle "playchess.com"]
[Source "ChessBase"]
[SourceQuality "1"]
[TimeControl "40/5400+30:1800+30"]

1. d4 {[%emt 0:00:00]} Nf6 {[%emt 0:00:00]} 2. c4 {[%emt 0:00:00]} e6 {[%emt 0:00:00]} 3. Nc3 {[%emt 0:00:00]} Bb4 {[%emt 0:00:00]} 4. Qc2 {[%emt 0:00:00]} d5 {[%emt 0:00:00]} 5. cxd5 {[%emt 0:00:00]} Qxd5 {[%emt 0:00:01]} 6. e3 {[%emt 0:02:32]} c5 {[%emt 0:01:55]} 7. Bd2 {[%emt 0:06:54]} Bxc3 {[%emt 0:01:37]} 8. Bxc3 {[%emt 0:00:31]} Nc6 {[%emt 0:06:46]} 9. dxc5 {[%emt 0:04:18]} Qxc5 {[%emt 0:00:06]} 10. Bd3 {[%emt 0:01:41]} O-O {[%emt 0:03:51]} 11. a3 {[%emt 0:03:09]} Qh5 {[%emt 0:02:40]} 12. Ne2 {[%emt 0:05:43]} Nd5 {[%emt 0:07:43]} 13. Nf4 {[%emt 0:01:02]} Nxf4 {[%emt 0:00:28]} 14. exf4 {[%emt 0:00:11]} Bd7 {[%emt 0:03:31]} 15. O-O {[%emt 0:02:48]} Ne7 {[%emt 0:05:31]} 16. Be4 {[%emt 0:02:54]} Bc6 {[%emt 0:06:39]} 17. Bb4 {[%emt 0:00:32]} Rfe8 {[%emt 0:01:13]} 18. Bxe7 {[%emt 0:00:14]} Bxe4 {[%emt 0:00:29]} 19. Qxe4 {[%emt 0:00:07]} Rxe7 {[%emt 0:00:01]} 20. Rfd1 {[%emt 0:00:16]} Rc7 {[%emt 0:09:16]} 21. Rd2 {[%emt 0:00:37]} Rac8 {[%emt 0:03:34]} 22. g3 {[%emt 0:00:38]} g6 {[%emt 0:01:57]} 23. Kg2 {[%emt 0:00:27]} Qb5 {[%emt 0:01:51]} 24. Rad1 {[%emt 0:01:32]} Rc4 {[%emt 0:05:13]} 25. Qe5 {[%emt 0:03:13]} Qxe5 {[%emt 0:02:29]} 26. fxe5 {[%emt 0:00:07]} R8c5 {[%emt 0:04:13]} 27. Rd8+ {[%emt 0:02:21]} Kg7 {[%emt 0:00:04]} 28. R8d7 {[%emt 0:00:06]} Rxe5 {[%emt 0:01:42]} 29. Rxb7 {[%emt 0:00:11]} Rc2 {[%emt 0:00:47]} 30. Rd3 {[%emt 0:00:06]} Rf5 {[%emt 0:03:52]} 1/2-1/2

[Event "USA-ch Juniors Open 2019"]
[Site "Saint Louis"]
[Date "2019.07.14"]
[Round "4.3"]
[White "Niemann, Hans Moke"]
[Black "Hilby, Craig"]
[Result "1-0"]
[ECO "A05"]
[WhiteElo "2467"]
[BlackElo "2433"]
[PlyCount "33"]
[EventDate "2019.07.09"]
[EventType "tourn"]
[EventCountry "USA"]
[TimeControl "40/5400+30:1800+30"]

1. Nf3 {[%emt 0:00:00]} Nf6 {[%emt 0:00:00]} 2. c4 {[%emt 0:00:00]} g6 {[%emt 0:00:00]} 3. Nc3 {[%emt 0:00:00]} d5 {[%emt 0:00:03]} 4. cxd5 {[%emt 0:00:00]} Nxd5 {[%emt 0:00:06]} 5. Qb3 {[%emt 0:00:00]} Nb6 {[%emt 0:00:46]} 6. d4 {[%emt 0:00:00]} Bg7 {[%emt 0:00:12]} 7. Bf4 {[%emt 0:00:02]} Be6 {[%emt 0:02:01]} 8. Qa3 {[%emt 0:00:10]} c5 {[%emt 0:01:08]} 9. e4 {[%emt 0:00:05]} cxd4 {[%emt 0:02:15]} 10. Nb5 {[%emt 0:00:02]} O-O {[%emt 0:00:07]} 11. Nc7 {[%emt 0:00:01]} Nc6 {[%emt 0:00:05]} 12. Nxa8 {[%emt 0:00:04]} Qxa8 {[%emt 0:00:04]} 13. Rc1 {[%emt 0:00:01]} f5 {[%emt 0:01:55]} 14. e5 {[%emt 0:00:01]} Nd5 {[%emt 0:00:05]} 15. Bd2 {[%emt 0:00:01]} Nxe5 {[%emt 0:00:05]} 16. Nxd4 {[%emt 0:00:02]} Nb6 {[%emt 0:00:06]} 17. Nxe6 {[%emt 0:00:04]} 1-0

[Event "USA-ch Juniors Open 2019"]
[Site "Saint Louis"]
[Date "2019.07.15"]
[Round "5.1"]
[White "Yu, Jennifer"]
[Black "Vaidya, Atulya"]
[Result "0-1"]
[ECO "A04"]
[WhiteElo "2341"]
[BlackElo "2118"]
[Annotator "RC"]
[PlyCount "82"]
[EventDate "2019.07.09"]
[EventType "tourn"]
[EventCountry "USA"]
[TimeControl "40/5400+30:1800+30"]

1. Nf3 {[%emt 0:00:00]} f5 {[%emt 0:00:00]} 2. c4 {[%emt 0:02:02]} g6 {[%emt 0:00:00]} 3. Nc3 {[%emt 0:02:15]} Nf6 {[%emt 0:00:03]} 4. g3 {[%emt 0:00:39]} Bg7 {[%emt 0:00:11]} 5. Bg2 {[%emt 0:00:25]} d6 {[%emt 0:00:13]} 6. O-O {[%emt 0:03:00]} O-O {[%emt 0:00:34]} 7. d3 {[%emt 0:01:48]} c6 {[%emt 0:01:12]} 8. Rb1 {[%emt 0:03:14]} a5 {[%emt 0:01:38]} 9. a3 {[%emt 0:00:42]} Re8 {[%emt 0:07:43]} 10. e4 {[%emt 0:06:24]} e5 {[%emt 0:09:26]} 11. b4 {[%emt 0:02:15]} Na6 {[%emt 0:04:15]} 12. Qb3 {[%emt 0:13:25]} h6 {[%emt 0:04:07]} 13. Nh4 {[%emt 0:02:34]} Kh7 {[%emt 0:00:35]} 14. exf5 {[%emt 0:10:34]} g5 {[%emt 0:01:11]} 15. Nf3 {[%emt 0:01:46]} Bxf5 {[%emt 0:02:16]} 16. Ne1 {[%emt 0:03:50]} Rb8 {[%emt 0:06:34]} 17. Ne4 {[%emt 0:02:26]} axb4 {[%emt 0:04:37]} 18. axb4 {[%emt 0:00:22]} Nc7 {[%emt 0:00:34]} 19. Be3 {[%emt 0:09:21]} Qd7 {[%emt 0:07:19]} 20. Nc2 {[%emt 0:02:24]} d5 {[%emt 0:01:12]} 21. Nxf6+ {[%emt 0:07:50]} Bxf6 {[%emt 0:00:13]} 22. cxd5 {[%emt 0:03:52]} cxd5 {[%emt 0:01:31]} 23. Ba7 {[%emt 0:05:47]} Rbc8 {[%emt 0:01:09]} 24. b5 Be6 {[%emt 0:05:37]} 25. d4 {[%emt 0:08:22]} e4 {[%emt 0:03:04]} 26. f3 {[%emt 0:01:48]} exf3 {[%emt 0:02:47]} 27. Rxf3 {[%emt 0:00:47]} Bg7 {[%emt 0:00:30]} 28. Qd3+ {[%emt 0:01:19]} Kh8 {[%emt 0:00:09]} 29. Bc5 {[%emt 0:01:03]} Bg4 {[%emt 0:00:39]} 30. Rf2 {[%emt 0:00:27]} Ne6 {[%emt 0:02:04]} 31. Ba3 {[%emt 0:03:33]} Bh5 {[%emt 0:04:51]} 32. Bb2 {[%emt 0:00:47]} Nf8 {[%emt 0:00:07]} 33. Ne3 {[%emt 0:00:18]} Bg6 {[%emt 0:00:37]} 34. Nf5 {[%emt 0:00:02]} Ne6 {[%emt 0:00:56]} 35. Qb3 {[%emt 0:01:29]} Bxf5 {[%emt 0:00:36]} 36. Rxf5 {[%emt 0:00:04]} Nf4 {[%emt 0:01:29]} 37. Rxf4 {[%emt 0:00:53]} gxf4 {[%emt 0:00:08]} 38. gxf4 {[%emt 0:00:08]} Qf5 {[%emt 0:00:18]} 39. Rf1 {[%emt 0:00:39]} Rc4 {[%emt 0:00:10]} 40. Kh1 {[%emt 0:00:00]} Re2 {[%emt 0:00:00]} 41. Bf3 {[%emt 0:08:37]} Qh3 {[%emt 0:00:45]} 0-1

[Event "USA-ch Juniors Open 2019"]
[Site "Saint Louis"]
[Date "2019.07.17"]
[Round "6.1"]
[White "Vaidya, Atulya"]
[Black "Burke, John M"]
[Result "1/2-1/2"]
[ECO "E10"]
[WhiteElo "2118"]
[BlackElo "2562"]
[Annotator "ChessBase"]
[PlyCount "102"]
[EventDate "2019.07.09"]
[EventType "tourn"]
[EventCountry "USA"]
[SourceTitle "playchess.com"]
[Source "ChessBase"]
[SourceQuality "1"]
[TimeControl "40/5400+30:1800+30"]

1. d4 {[%emt 0:00:00]} Nf6 {[%emt 0:00:00]} 2. c4 {[%emt 0:00:00]} e6 {[%emt 0:00:00]} 3. Nf3 {[%emt 0:00:00]} d5 {[%emt 0:00:00]} 4. cxd5 {[%emt 0:00:08]} exd5 {[%emt 0:00:00]} 5. Qc2 {[%emt 0:00:09]} Nc6 {[%emt 0:03:14]} 6. a3 {[%emt 0:05:28]} Bd6 {[%emt 0:02:50]} 7. Bg5 {[%emt 0:00:25]} h6 {[%emt 0:00:25]} 8. Bh4 {[%emt 0:03:43]} Qe7 {[%emt 0:04:08]} 9. Bxf6 {[%emt 0:14:23]} Qxf6 {[%emt 0:00:17]} 10. e3 {[%emt 0:00:21]} Ne7 {[%emt 0:06:53]} 11. Bd3 {[%emt 0:00:53]} g5 {[%emt 0:08:30]} 12. Nc3 {[%emt 0:08:09]} g4 {[%emt 0:02:50]} 13. Nd2 {[%emt 0:02:22]} c6 {[%emt 0:00:56]} 14. b4 {[%emt 0:05:08]} Nf5 {[%emt 0:10:33]} 15. g3 {[%emt 0:15:13]} Kf8 {[%emt 0:11:55]} 16. Nb3 {[%emt 0:03:26]} Kg7 {[%emt 0:00:51]} 17. Qe2 {[%emt 0:01:27]} h5 {[%emt 0:01:22]} 18. Rf1 {[%emt 0:04:42]} Re8 {[%emt 0:02:52]} 19. Kd2 {[%emt 0:03:20]} b6 {[%emt 0:03:32]} 20. h3 {[%emt 0:00:27]} Qg5 {[%emt 0:01:14]} 21. hxg4 {[%emt 0:00:29]} hxg4 {[%emt 0:00:52]} 22. f4 {[%emt 0:08:21]} gxf3 {[%emt 0:06:24]} 23. Rxf3 {[%emt 0:00:13]} c5 {[%emt 0:02:46]} 24. bxc5 {[%emt 0:09:01]} bxc5 {[%emt 0:00:34]} 25. Nb5 {[%emt 0:01:35]} a6 {[%emt 0:14:06]} 26. Rxf5 {[%emt 0:02:41]} Bxf5 {[%emt 0:00:14]} 27. Nxd6 {[%emt 0:00:06]} Bxd3 {[%emt 0:00:04]} 28. Nxe8+ {[%emt 0:00:07]} Rxe8 {[%emt 0:00:05]} 29. Qxd3 {[%emt 0:00:04]} c4 {[%emt 0:00:09]} 30. Qc3 {[%emt 0:00:07]} cxb3 {[%emt 0:01:00]} 31. Qxb3 {[%emt 0:00:06]} Re4 {[%emt 0:03:41]} 32. Qc3 {[%emt 0:01:29]} Rg4 {[%emt 0:01:15]} 33. Rg1 {[%emt 0:00:45]} Rxg3 {[%emt 0:00:06]} 34. Rxg3 {[%emt 0:00:06]} Qxg3 {[%emt 0:00:03]} 35. Qc6 {[%emt 0:00:47]} Qf2+ {[%emt 0:01:13]} 36. Kd3 {[%emt 0:00:09]} Qg2 {[%emt 0:02:02]} 37. Qd6 {[%emt 0:00:20]} a5 {[%emt 0:02:44]} 38. Qe5+ {[%emt 0:00:22]} Kg6 {[%emt 0:00:18]} 39. Qd6+ {[%emt 0:00:34]} f6 {[%emt 0:00:18]} 40. Qf8 {[%emt 0:00:00]} Qf1+ {[%emt 0:00:00]} 41. Kd2 {[%emt 0:00:28]} Qg2+ {[%emt 0:01:49]} 42. Kd3 {[%emt 0:00:08]} Qe4+ {[%emt 0:00:35]} 43. Kd2 {[%emt 0:00:09]} Kf5 {[%emt 0:01:08]} 44. Qc8+ {[%emt 0:01:04]} Qe6 {[%emt 0:00:05]} 45. Qc7 {[%emt 0:00:05]} Qg8 {[%emt 0:03:42]} 46. Qf4+ {[%emt 0:00:56]} Ke6 {[%emt 0:00:06]} 47. Qc7 {[%emt 0:00:12]} Qg2+ {[%emt 0:00:23]} 48. Kd3 {[%emt 0:00:10]} Qf1+ {[%emt 0:01:38]} 49. Kd2 {[%emt 0:00:07]} Qa6 {[%emt 0:00:55]} 50. Qd8 {[%emt 0:01:02]} Qb5 {[%emt 0:04:30]} 51. Qg8+ {[%emt 0:00:22]} Ke7 {[%emt 0:00:20]} 1/2-1/2

[Event "USA-ch Juniors Open 2019"]
[Site "Saint Louis"]
[Date "2019.07.17"]
[Round "6.2"]
[White "Niemann, Hans Moke"]
[Black "Sheng, Joshua"]
[Result "0-1"]
[ECO "A09"]
[WhiteElo "2467"]
[BlackElo "2449"]
[Annotator "ChessBase"]
[PlyCount "60"]
[EventDate "2019.07.09"]
[EventType "tourn"]
[EventCountry "USA"]
[SourceTitle "playchess.com"]
[Source "ChessBase"]
[SourceQuality "1"]
[TimeControl "40/5400+30:1800+30"]

1. Nf3 {[%emt 0:00:00]} d5 {[%emt 0:00:00]} 2. c4 {[%emt 0:00:00]} d4 {[%emt 0:00:57]} 3. g3 {[%emt 0:05:15]} Nc6 {[%emt 0:01:14]} 4. Bg2 {[%emt 0:02:33]} e5 {[%emt 0:00:15]} 5. d3 {[%emt 0:00:04]} Bb4+ {[%emt 0:00:33]} 6. Bd2 {[%emt 0:00:38]} Bxd2+ {[%emt 0:04:43]} 7. Nbxd2 {[%emt 0:01:03]} a5 {[%emt 0:02:19]} 8. a3 {[%emt 0:02:52]} a4 {[%emt 0:03:52]} 9. b4 {[%emt 0:00:50]} axb3 {[%emt 0:00:12]} 10. Qxb3 {[%emt 0:00:06]} Nf6 {[%emt 0:00:41]} 11. O-O {[%emt 0:00:33]} Nd7 {[%emt 0:03:54]} 12. Ne1 {[%emt 0:07:46]} O-O {[%emt 0:05:29]} 13. Qb5 {[%emt 0:01:28]} Ra6 {[%emt 0:10:12]} 14. f4 {[%emt 0:12:34]} Rb6 {[%emt 0:06:45]} 15. Qd5 {[%emt 0:00:50]} Rb2 {[%emt 0:01:52]} 16. Nef3 {[%emt 0:02:05]} Ne7 {[%emt 0:07:33]} 17. Qa5 {[%emt 0:00:05]} b6 {[%emt 0:01:15]} 18. Qa4 {[%emt 0:00:55]} exf4 {[%emt 0:04:46]} 19. Qd1 {[%emt 0:04:06]} Nc5 {[%emt 0:03:45]} 20. gxf4 {[%emt 0:01:13]} Nf5 {[%emt 0:00:58]} 21. Qc1 {[%emt 0:00:23]} Na4 {[%emt 0:00:28]} 22. Rf2 {[%emt 0:01:24]} Ne3 {[%emt 0:03:39]} 23. Ne1 {[%emt 0:05:18]} Ng4 {[%emt 0:09:00]} 24. Rf1 {[%emt 0:04:29]} Qe7 {[%emt 0:00:58]} 25. Ne4 {[%emt 0:01:53]} Rxe2 {[%emt 0:01:00]} 26. Ng3 {[%emt 0:03:28]} Nc3 {[%emt 0:02:14]} 27. Nf3 {[%emt 0:01:14]} Bb7 {[%emt 0:01:16]} 28. h3 {[%emt 0:01:49]} Ne3 {[%emt 0:02:16]} 29. Rf2 {[%emt 0:00:26]} Rxf2 {[%emt 0:01:11]} 30. Kxf2 {[%emt 0:00:03]} Qd6 {[%emt 0:01:15]} 0-1